[Event "Titled Tuesday Blitz April 05 Late 2022"]
[White "Rasulov, Vugar"]
[Black "Kosteniuk, Alexandra"]
[WhiteFideId "13402390"]
[BlackFideId "4128125"]
[WhiteElo "2560"]
[BlackElo "2469"]
[Result "1/2-1/2"]
[Round "08"]
[TimeControl "180+1"]
[Date "2022.04.05"]
[WhiteClock "0:00:29"]
[BlackClock "0:00:07"]

1. d4 {[%clk 0:03:00]}  Nf6 {[%clk 0:02:59]} 2. c4 {[%clk 0:03:01]}  e6 {[%clk 0:03:00]} 3. Nc3 {[%clk 0:03:01]}  Bb4 {[%clk 0:02:59]} 4. Bd2 {[%clk 0:03:02]}  b6 {[%clk 0:02:58]} 5. Nf3 {[%clk 0:03:02]}  Bb7 {[%clk 0:02:57]} 6. e3 {[%clk 0:03:02]}  O-O {[%clk 0:02:56]} 7. Be2 {[%clk 0:03:03]}  d5 {[%clk 0:02:55]} 8. O-O {[%clk 0:03:03]}  c5 {[%clk 0:02:52]} 9. a3 {[%clk 0:03:02]}  Bxc3 {[%clk 0:02:51]} 10. Bxc3 {[%clk 0:03:03]}  Ne4 {[%clk 0:02:52]} 11. Rc1 {[%clk 0:03:04]}  Nxc3 {[%clk 0:02:50]} 12. Rxc3 {[%clk 0:03:05]}  Nd7 {[%clk 0:02:50]} 13. dxc5 {[%clk 0:02:59]}  Nxc5 {[%clk 0:02:50]} 14. b4 {[%clk 0:02:59]}  Ne4 {[%clk 0:02:49]} 15. Rc1 {[%clk 0:02:59]}  Rc8 {[%clk 0:02:41]} 16. Qd4 {[%clk 0:02:54]}  Qf6 {[%clk 0:02:38]} 17. cxd5 {[%clk 0:02:35]}  Bxd5 {[%clk 0:02:26]} 18. Qxf6 {[%clk 0:02:35]}  gxf6 {[%clk 0:02:23]} 19. Nd4 {[%clk 0:02:36]}  Bb7 {[%clk 0:01:51]} 20. f3 {[%clk 0:02:30]}  Nc3 {[%clk 0:01:50]} 21. Kf2 {[%clk 0:02:28]}  f5 {[%clk 0:01:42]} 22. Rfe1 {[%clk 0:02:18]}  Nxe2 {[%clk 0:01:39]} 23. Nxe2 {[%clk 0:02:14]}  Kg7 {[%clk 0:01:35]} 24. Nd4 {[%clk 0:02:12]}  Bd5 {[%clk 0:01:28]} 25. Nb5 {[%clk 0:01:50]}  a5 {[%clk 0:01:26]} 26. Na7 {[%clk 0:01:43]}  Rxc1 {[%clk 0:00:57]} 27. Rxc1 {[%clk 0:01:44]}  axb4 {[%clk 0:00:58]} 28. axb4 {[%clk 0:01:43]}  Rd8 {[%clk 0:00:52]} 29. Rc7 {[%clk 0:01:43]}  Kf6 {[%clk 0:00:49]} 30. Nb5 {[%clk 0:01:42]}  Ra8 {[%clk 0:00:47]} 31. Nd6 {[%clk 0:01:41]}  e5 {[%clk 0:00:43]} 32. Nc8 {[%clk 0:01:33]}  Ra2+ {[%clk 0:00:33]} 33. Kg3 {[%clk 0:01:33]}  b5 {[%clk 0:00:33]} 34. Nb6 {[%clk 0:01:29]}  Be6 {[%clk 0:00:31]} 35. Rc5 {[%clk 0:01:22]}  Re2 {[%clk 0:00:31]} 36. Rxb5 {[%clk 0:01:21]}  Rxe3 {[%clk 0:00:31]} 37. Nd5+ {[%clk 0:01:12]}  Bxd5 {[%clk 0:00:29]} 38. Rxd5 {[%clk 0:01:13]}  Re2 {[%clk 0:00:29]} 39. Rd6+ {[%clk 0:01:11]}  Kg7 {[%clk 0:00:28]} 40. b5 {[%clk 0:01:10]}  Rb2 {[%clk 0:00:27]} 41. b6 {[%clk 0:01:10]}  Rb4 {[%clk 0:00:25]} 42. Rc6 {[%clk 0:01:07]}  h5 {[%clk 0:00:25]} 43. Kh3 {[%clk 0:01:00]}  h4 {[%clk 0:00:21]} 44. Rd6 {[%clk 0:00:59]}  e4 {[%clk 0:00:14]} 45. fxe4 {[%clk 0:00:54]}  fxe4 {[%clk 0:00:15]} 46. Kxh4 {[%clk 0:00:45]}  e3+ {[%clk 0:00:15]} 47. Kg3 {[%clk 0:00:46]}  Re4 {[%clk 0:00:14]} 48. Rd1 {[%clk 0:00:45]}  Rb4 {[%clk 0:00:14]} 49. Re1 {[%clk 0:00:45]}  Rxb6 {[%clk 0:00:14]} 50. Rxe3 {[%clk 0:00:45]}  Rg6+ {[%clk 0:00:15]} 51. Kf2 {[%clk 0:00:46]}  Ra6 {[%clk 0:00:15]} 52. h3 {[%clk 0:00:45]}  Ra4 {[%clk 0:00:15]} 53. Kf3 {[%clk 0:00:45]}  Kg6 {[%clk 0:00:15]} 54. Re4 {[%clk 0:00:46]}  Ra3+ {[%clk 0:00:15]} 55. Kf4 {[%clk 0:00:46]}  Ra2 {[%clk 0:00:16]} 56. g4 {[%clk 0:00:46]}  Rf2+ {[%clk 0:00:16]} 57. Kg3 {[%clk 0:00:46]}  Ra2 {[%clk 0:00:17]} 58. Re3 {[%clk 0:00:47]}  Ra4 {[%clk 0:00:17]} 59. h4 {[%clk 0:00:45]}  f6 {[%clk 0:00:17]} 60. Rf3 {[%clk 0:00:43]}  Rb4 {[%clk 0:00:17]} 61. h5+ {[%clk 0:00:42]}  Kg7 {[%clk 0:00:17]} 62. Rc3 {[%clk 0:00:42]}  Kh6 {[%clk 0:00:16]} 63. Rc8 {[%clk 0:00:41]}  Kg7 {[%clk 0:00:11]} 64. Rc7+ {[%clk 0:00:40]}  Kg8 {[%clk 0:00:07]} 65. h6 {[%clk 0:00:38]}  Kh8 {[%clk 0:00:07]} 66. Kh4 {[%clk 0:00:37]}  f5 {[%clk 0:00:07]} 67. Kg5 {[%clk 0:00:28]}  Rxg4+ {[%clk 0:00:07]} 68. Kxf5 {[%clk 0:00:29]}  Rg1 {[%clk 0:00:07]} 69. Rg7 {[%clk 0:00:28]}  Rxg7 {[%clk 0:00:07]} 70. hxg7+ {[%clk 0:00:29]}  Kxg7 {[%clk 0:00:07]} 1/2-1/2


[Site "https://www.chess.com"]

[Event "Titled Tuesday Blitz April 05 Late 2022"]
[White "Reprintsev, Alexander"]
[Black "Sapunov, Evgeny"]
[WhiteFideId "14100541"]
[BlackFideId "4126661"]
[WhiteElo "2108"]
[BlackElo "2470"]
[Result "1-0"]
[Round "08"]
[TimeControl "180+1"]
[Date "2022.04.05"]
[WhiteClock "0:01:22"]
[BlackClock "0:00:08"]

1. e4 {[%clk 0:02:55]}  c5 {[%clk 0:02:59]} 2. b3 {[%clk 0:02:54]}  e6 {[%clk 0:02:59]} 3. Qe2 {[%clk 0:02:53]}  Nc6 {[%clk 0:02:55]} 4. Bb2 {[%clk 0:02:53]}  d6 {[%clk 0:02:51]} 5. f4 {[%clk 0:02:52]}  e5 {[%clk 0:02:51]} 6. Qf2 {[%clk 0:02:48]}  Nf6 {[%clk 0:02:48]} 7. Nc3 {[%clk 0:02:48]}  Be7 {[%clk 0:02:27]} 8. O-O-O {[%clk 0:02:48]}  O-O {[%clk 0:02:27]} 9. h3 {[%clk 0:02:39]}  a6 {[%clk 0:02:21]} 10. g4 {[%clk 0:02:38]}  b5 {[%clk 0:02:20]} 11. g5 {[%clk 0:02:38]}  b4 {[%clk 0:02:14]} 12. gxf6 {[%clk 0:02:36]}  bxc3 {[%clk 0:02:14]} 13. dxc3 {[%clk 0:02:36]}  Bxf6 {[%clk 0:02:13]} 14. f5 {[%clk 0:02:36]}  Qe7 {[%clk 0:02:07]} 15. Bc4 {[%clk 0:02:35]}  Bb7 {[%clk 0:02:06]} 16. Nf3 {[%clk 0:02:29]}  Na5 {[%clk 0:02:06]} 17. Bd5 {[%clk 0:02:29]}  c4 {[%clk 0:02:07]} 18. Nh2 {[%clk 0:02:26]}  Rac8 {[%clk 0:02:00]} 19. Ng4 {[%clk 0:02:26]}  cxb3 {[%clk 0:01:22]} 20. axb3 {[%clk 0:02:25]}  Nc6 {[%clk 0:01:18]} 21. Rhg1 {[%clk 0:02:23]}  Kh8 {[%clk 0:01:14]} 22. Kb1 {[%clk 0:02:23]}  Rc7 {[%clk 0:01:14]} 23. Ba3 {[%clk 0:02:20]}  Rd8 {[%clk 0:01:12]} 24. Rd3 {[%clk 0:02:17]}  Na7 {[%clk 0:01:10]} 25. Bxb7 {[%clk 0:02:13]}  Rxb7 {[%clk 0:01:09]} 26. c4 {[%clk 0:02:12]}  a5 {[%clk 0:01:05]} 27. Rgd1 {[%clk 0:02:11]}  Nc8 {[%clk 0:01:04]} 28. Rd5 {[%clk 0:02:00]}  a4 {[%clk 0:01:03]} 29. b4 {[%clk 0:01:59]}  Re8 {[%clk 0:01:02]} 30. b5 {[%clk 0:01:52]}  Rc7 {[%clk 0:01:01]} 31. c5 {[%clk 0:01:45]}  Qd7 {[%clk 0:00:25]} 32. c4 {[%clk 0:01:38]}  h6 {[%clk 0:00:20]} 33. Qc2 {[%clk 0:01:33]}  h5 {[%clk 0:00:16]} 34. Nxf6 {[%clk 0:01:32]}  gxf6 {[%clk 0:00:17]} 35. cxd6 {[%clk 0:01:32]}  Rb7 {[%clk 0:00:16]} 36. Ka2 {[%clk 0:01:31]}  Kh7 {[%clk 0:00:14]} 37. R5d3 {[%clk 0:01:27]}  Rg8 {[%clk 0:00:13]} 38. Qe2 {[%clk 0:01:26]}  Rg5 {[%clk 0:00:12]} 39. h4 {[%clk 0:01:25]}  Rg4 {[%clk 0:00:12]} 40. Re3 {[%clk 0:01:26]}  Nb6 {[%clk 0:00:11]} 41. c5 {[%clk 0:01:25]}  Nc4 {[%clk 0:00:07]} 42. Qxc4 {[%clk 0:01:25]}  Rxb5 {[%clk 0:00:08]} 43. c6 {[%clk 0:01:22]} 1-0


[Site "https://www.chess.com"]

[Event "Titled Tuesday Blitz April 05 Late 2022"]
[White "Romanchuk, Viktor"]
[Black "VengoDelFuturo"]
[WhiteFideId "14109271"]
[WhiteElo "2559"]
[BlackElo "2376"]
[Result "1-0"]
[Round "08"]
[TimeControl "180+1"]
[Date "2022.04.06"]
[WhiteClock "0:00:15"]
[BlackClock "0:00:04"]

1. d4 {[%clk 0:03:00]}  Nf6 {[%clk 0:02:58]} 2. c4 {[%clk 0:03:00]}  g6 {[%clk 0:02:58]} 3. Nc3 {[%clk 0:02:59]}  Bg7 {[%clk 0:02:58]} 4. Nf3 {[%clk 0:02:54]}  O-O {[%clk 0:02:57]} 5. g3 {[%clk 0:02:55]}  d5 {[%clk 0:02:56]} 6. cxd5 {[%clk 0:02:55]}  Nxd5 {[%clk 0:02:56]} 7. Bg2 {[%clk 0:02:55]}  c5 {[%clk 0:02:53]} 8. O-O {[%clk 0:02:46]}  Nc6 {[%clk 0:02:53]} 9. Nxd5 {[%clk 0:02:40]}  Qxd5 {[%clk 0:02:52]} 10. dxc5 {[%clk 0:02:33]}  Qxc5 {[%clk 0:02:51]} 11. Qb3 {[%clk 0:02:30]}  Be6 {[%clk 0:02:41]} 12. Qxb7 {[%clk 0:02:28]}  Rab8 {[%clk 0:02:40]} 13. Qa6 {[%clk 0:02:28]}  Nb4 {[%clk 0:02:30]} 14. Qa3 {[%clk 0:02:12]}  a5 {[%clk 0:02:02]} 15. Bf4 {[%clk 0:01:46]}  Rbc8 {[%clk 0:01:51]} 16. Rac1 {[%clk 0:01:38]}  Qb5 {[%clk 0:01:45]} 17. Rc7 {[%clk 0:01:26]}  Nd5 {[%clk 0:01:11]} 18. Rxc8 {[%clk 0:01:22]}  Rxc8 {[%clk 0:01:10]} 19. Be5 {[%clk 0:01:22]}  Bxe5 {[%clk 0:01:04]} 20. Nxe5 {[%clk 0:01:23]}  Qxe2 {[%clk 0:01:04]} 21. Nf3 {[%clk 0:01:10]}  Qc4 {[%clk 0:00:47]} 22. Qxa5 {[%clk 0:00:58]}  Nb4 {[%clk 0:00:43]} 23. Ng5 {[%clk 0:00:52]}  Bg4 {[%clk 0:00:27]} 24. b3 {[%clk 0:00:39]}  Qd4 {[%clk 0:00:20]} 25. Nf3 {[%clk 0:00:30]}  Bxf3 {[%clk 0:00:18]} 26. Bxf3 {[%clk 0:00:30]}  Nd3 {[%clk 0:00:18]} 27. Qd2 {[%clk 0:00:27]}  Ne5 {[%clk 0:00:14]} 28. Qe2 {[%clk 0:00:21]}  Qc3 {[%clk 0:00:10]} 29. Kg2 {[%clk 0:00:18]}  h5 {[%clk 0:00:03]} 30. h3 {[%clk 0:00:17]}  h4 {[%clk 0:00:03]} 31. g4 {[%clk 0:00:16]}  Nd3 {[%clk 0:00:04]} 32. Qe3 {[%clk 0:00:15]} 1-0


[Site "https://www.chess.com"]

[Event "Titled Tuesday Blitz April 05 Late 2022"]
[White "Romero Ruscalleda, Josep"]
[Black "Golubev, Mikhail"]
[WhiteFideId "2231859"]
[BlackFideId "14100983"]
[WhiteElo "2296"]
[BlackElo "2411"]
[Result "0-1"]
[Round "08"]
[TimeControl "180+1"]
[Date "2022.04.06"]
[WhiteClock "0:00:19"]
[BlackClock "0:00:21"]

1. e4 {[%clk 0:03:00]}  c5 {[%clk 0:02:58]} 2. c3 {[%clk 0:03:00]}  d5 {[%clk 0:02:57]} 3. exd5 {[%clk 0:03:00]}  Nf6 {[%clk 0:02:58]} 4. Nf3 {[%clk 0:02:59]}  Nxd5 {[%clk 0:02:57]} 5. d4 {[%clk 0:02:59]}  cxd4 {[%clk 0:02:57]} 6. Nxd4 {[%clk 0:02:57]}  g6 {[%clk 0:02:44]} 7. Bc4 {[%clk 0:02:55]}  Bg7 {[%clk 0:02:35]} 8. Qf3 {[%clk 0:02:53]}  Nf6 {[%clk 0:02:24]} 9. Nd2 {[%clk 0:02:44]}  O-O {[%clk 0:02:22]} 10. O-O {[%clk 0:02:38]}  e5 {[%clk 0:02:21]} 11. N4b3 {[%clk 0:02:33]}  Nc6 {[%clk 0:02:18]} 12. Ne4 {[%clk 0:02:30]}  Nxe4 {[%clk 0:02:18]} 13. Qxe4 {[%clk 0:02:30]}  Bf5 {[%clk 0:02:18]} 14. Qe2 {[%clk 0:02:26]}  Qc7 {[%clk 0:02:07]} 15. Be3 {[%clk 0:02:23]}  Rad8 {[%clk 0:01:58]} 16. f3 {[%clk 0:02:12]}  a6 {[%clk 0:01:57]} 17. a4 {[%clk 0:02:07]}  Rfe8 {[%clk 0:01:49]} 18. a5 {[%clk 0:02:06]}  Nd4 {[%clk 0:01:38]} 19. cxd4 {[%clk 0:01:44]}  exd4 {[%clk 0:01:39]} 20. Rac1 {[%clk 0:01:36]}  Rxe3 {[%clk 0:01:23]} 21. Qd2 {[%clk 0:01:32]}  Qe7 {[%clk 0:01:15]} 22. Nc5 {[%clk 0:01:23]}  d3 {[%clk 0:00:56]} 23. Ne4 {[%clk 0:01:04]}  Re2 {[%clk 0:00:55]} 24. Qf4 {[%clk 0:01:03]}  Be5 {[%clk 0:00:47]} 25. Qh6 {[%clk 0:01:00]}  d2 {[%clk 0:00:34]} 26. Bxe2 {[%clk 0:00:55]}  dxc1=Q {[%clk 0:00:28]} 27. Qxc1 {[%clk 0:00:50]}  Qb4 {[%clk 0:00:24]} 28. Qc5 {[%clk 0:00:19]}  Qxc5+ {[%clk 0:00:23]} 29. Nxc5 {[%clk 0:00:19]}  Bd4+ {[%clk 0:00:23]} 30. Kh1 {[%clk 0:00:20]}  Bxc5 {[%clk 0:00:24]} 31. Rc1 {[%clk 0:00:19]}  Be3 {[%clk 0:00:22]} 32. Rc7 {[%clk 0:00:19]}  Rd2 {[%clk 0:00:21]} 0-1


[Site "https://www.chess.com"]

[Event "Titled Tuesday Blitz April 05 Late 2022"]
[White "Rudzinska, Michalina"]
[Black "Baches Garcia, Guillermo"]
[WhiteFideId "1172883"]
[BlackFideId "2209764"]
[WhiteElo "2301"]
[BlackElo "2503"]
[Result "0-1"]
[Round "08"]
[TimeControl "180+1"]
[Date "2022.04.06"]
[WhiteClock "0:00:04"]
[BlackClock "0:00:09"]

1. Nf3 {[%clk 0:03:00]}  d5 {[%clk 0:02:59]} 2. b3 {[%clk 0:03:00]}  Nf6 {[%clk 0:02:54]} 3. Bb2 {[%clk 0:02:59]}  e6 {[%clk 0:02:55]} 4. e3 {[%clk 0:02:57]}  Be7 {[%clk 0:02:55]} 5. d4 {[%clk 0:02:57]}  O-O {[%clk 0:02:55]} 6. Bd3 {[%clk 0:02:58]}  b6 {[%clk 0:02:55]} 7. O-O {[%clk 0:02:59]}  Bb7 {[%clk 0:02:54]} 8. Ne5 {[%clk 0:02:58]}  c5 {[%clk 0:02:53]} 9. Nd2 {[%clk 0:02:58]}  Nc6 {[%clk 0:02:53]} 10. f4 {[%clk 0:02:54]}  g6 {[%clk 0:02:41]} 11. Rf3 {[%clk 0:02:51]}  Re8 {[%clk 0:02:39]} 12. Rh3 {[%clk 0:02:46]}  Bf8 {[%clk 0:02:38]} 13. dxc5 {[%clk 0:02:38]}  bxc5 {[%clk 0:02:30]} 14. Bb5 {[%clk 0:02:34]}  Rc8 {[%clk 0:02:22]} 15. Ndf3 {[%clk 0:02:32]}  Bg7 {[%clk 0:02:15]} 16. Ng5 {[%clk 0:02:30]}  Nxe5 {[%clk 0:01:55]} 17. fxe5 {[%clk 0:02:28]}  Ne4 {[%clk 0:01:39]} 18. Nxe4 {[%clk 0:02:23]}  dxe4 {[%clk 0:01:37]} 19. Bxe8 {[%clk 0:02:22]}  Qxe8 {[%clk 0:01:36]} 20. Qg4 {[%clk 0:02:17]}  c4 {[%clk 0:01:31]} 21. Rf1 {[%clk 0:02:15]}  c3 {[%clk 0:01:29]} 22. Ba3 {[%clk 0:02:11]}  Bxe5 {[%clk 0:01:25]} 23. Qh4 {[%clk 0:02:10]}  h5 {[%clk 0:01:13]} 24. Be7 {[%clk 0:02:09]}  Ba6 {[%clk 0:00:49]} 25. Re1 {[%clk 0:01:43]}  Qd7 {[%clk 0:00:42]} 26. Bf6 {[%clk 0:01:24]}  Bxf6 {[%clk 0:00:33]} 27. Qxf6 {[%clk 0:01:25]}  Qd2 {[%clk 0:00:32]} 28. Qf2 {[%clk 0:01:25]}  Rd8 {[%clk 0:00:26]} 29. Qh4 {[%clk 0:01:14]}  Rd5 {[%clk 0:00:18]} 30. g4 {[%clk 0:01:09]}  Kg7 {[%clk 0:00:14]} 31. g5 {[%clk 0:01:07]}  Rf5 {[%clk 0:00:13]} 32. Qg3 {[%clk 0:00:45]}  Qd5 {[%clk 0:00:12]} 33. Kh1 {[%clk 0:00:40]}  Rxg5 {[%clk 0:00:12]} 34. Qf2 {[%clk 0:00:39]}  Rf5 {[%clk 0:00:12]} 35. Qg1 {[%clk 0:00:34]}  Qd2 {[%clk 0:00:11]} 36. Rg3 {[%clk 0:00:35]}  Be2 {[%clk 0:00:10]} 37. h3 {[%clk 0:00:16]}  Bf3+ {[%clk 0:00:10]} 38. Rxf3 {[%clk 0:00:16]}  exf3 {[%clk 0:00:10]} 39. Rc1 {[%clk 0:00:06]}  f2 {[%clk 0:00:10]} 40. Qf1 {[%clk 0:00:06]}  Qxe3 {[%clk 0:00:10]} 41. Rd1 {[%clk 0:00:05]}  Qf3+ {[%clk 0:00:09]} 42. Kh2 {[%clk 0:00:05]}  Qf4+ {[%clk 0:00:09]} 43. Kh1 {[%clk 0:00:05]}  Qf3+ {[%clk 0:00:09]} 44. Kh2 {[%clk 0:00:05]}  Qxd1 {[%clk 0:00:09]} 45. Qxd1 {[%clk 0:00:04]}  f1=Q {[%clk 0:00:09]} 46. Qd4+ {[%clk 0:00:04]}  Rf6 {[%clk 0:00:09]} 0-1


[Site "https://www.chess.com"]

[Event "Titled Tuesday Blitz April 05 Late 2022"]
[White "Sadhwani, Raunak"]
[Black "He, Anthony"]
[WhiteFideId "35093487"]
[BlackFideId "2088215"]
[WhiteElo "2616"]
[BlackElo "2415"]
[Result "1/2-1/2"]
[Round "08"]
[TimeControl "180+1"]
[Date "2022.04.05"]
[WhiteClock "0:00:09"]
[BlackClock "0:00:14"]

1. d4 {[%clk 0:03:00]}  Nf6 {[%clk 0:03:00]} 2. Nf3 {[%clk 0:03:01]}  d5 {[%clk 0:02:59]} 3. Bf4 {[%clk 0:03:01]}  c5 {[%clk 0:02:59]} 4. e3 {[%clk 0:03:02]}  Nc6 {[%clk 0:03:00]} 5. Nbd2 {[%clk 0:03:02]}  cxd4 {[%clk 0:02:59]} 6. exd4 {[%clk 0:03:02]}  Bf5 {[%clk 0:02:59]} 7. c3 {[%clk 0:03:02]}  e6 {[%clk 0:03:00]} 8. Be2 {[%clk 0:02:47]}  h6 {[%clk 0:02:57]} 9. O-O {[%clk 0:02:46]}  Be7 {[%clk 0:02:57]} 10. Qb3 {[%clk 0:02:45]}  Qc8 {[%clk 0:02:57]} 11. Rfe1 {[%clk 0:02:43]}  O-O {[%clk 0:02:57]} 12. h3 {[%clk 0:02:44]}  Bh7 {[%clk 0:02:57]} 13. a4 {[%clk 0:02:42]}  Bd8 {[%clk 0:02:53]} 14. Ne5 {[%clk 0:02:22]}  Nxe5 {[%clk 0:02:51]} 15. Bxe5 {[%clk 0:02:22]}  Nd7 {[%clk 0:02:52]} 16. Bg3 {[%clk 0:02:20]}  Bc7 {[%clk 0:02:48]} 17. Bxc7 {[%clk 0:02:21]}  Qxc7 {[%clk 0:02:49]} 18. a5 {[%clk 0:02:22]}  Rac8 {[%clk 0:02:47]} 19. Nf3 {[%clk 0:02:21]}  Be4 {[%clk 0:02:45]} 20. Nd2 {[%clk 0:02:21]}  Bf5 {[%clk 0:02:44]} 21. Qa3 {[%clk 0:02:13]}  Rfe8 {[%clk 0:02:42]} 22. Bb5 {[%clk 0:02:13]}  Red8 {[%clk 0:02:32]} 23. Bxd7 {[%clk 0:02:06]}  Qxd7 {[%clk 0:02:32]} 24. Qb4 {[%clk 0:02:05]}  Qc7 {[%clk 0:02:32]} 25. Ra3 {[%clk 0:02:04]}  Rb8 {[%clk 0:02:30]} 26. Nf1 {[%clk 0:01:37]}  Bd3 {[%clk 0:02:29]} 27. Ne3 {[%clk 0:01:37]}  Qd6 {[%clk 0:02:07]} 28. Rb3 {[%clk 0:01:29]}  Qxb4 {[%clk 0:02:01]} 29. Rxb4 {[%clk 0:01:30]}  Rdc8 {[%clk 0:02:01]} 30. Rd1 {[%clk 0:01:29]}  Bg6 {[%clk 0:01:56]} 31. f3 {[%clk 0:01:27]}  Kf8 {[%clk 0:01:56]} 32. Kf2 {[%clk 0:01:28]}  Ke7 {[%clk 0:01:56]} 33. Ke2 {[%clk 0:01:28]}  Kd7 {[%clk 0:01:56]} 34. h4 {[%clk 0:01:28]}  f6 {[%clk 0:01:56]} 35. g4 {[%clk 0:01:24]}  Rc6 {[%clk 0:01:53]} 36. Rg1 {[%clk 0:01:23]}  Ke7 {[%clk 0:01:34]} 37. g5 {[%clk 0:00:57]}  hxg5 {[%clk 0:01:26]} 38. hxg5 {[%clk 0:00:58]}  Kf7 {[%clk 0:01:26]} 39. gxf6 {[%clk 0:00:57]}  gxf6 {[%clk 0:01:27]} 40. Ra1 {[%clk 0:00:57]}  Rc7 {[%clk 0:01:23]} 41. Ra3 {[%clk 0:00:57]}  Ke7 {[%clk 0:00:57]} 42. Rab3 {[%clk 0:00:56]}  Be8 {[%clk 0:00:58]} 43. Ra3 {[%clk 0:00:27]}  a6 {[%clk 0:00:50]} 44. Kd2 {[%clk 0:00:17]}  Bb5 {[%clk 0:00:49]} 45. b3 {[%clk 0:00:17]}  Rbc8 {[%clk 0:00:40]} 46. c4 {[%clk 0:00:18]}  dxc4 {[%clk 0:00:41]} 47. bxc4 {[%clk 0:00:18]}  Bxc4 {[%clk 0:00:42]} 48. Nxc4 {[%clk 0:00:16]}  Rxc4 {[%clk 0:00:42]} 49. Rxb7+ {[%clk 0:00:17]}  Kd6 {[%clk 0:00:40]} 50. Kd3 {[%clk 0:00:16]}  R4c6 {[%clk 0:00:32]} 51. Rab3 {[%clk 0:00:15]}  e5 {[%clk 0:00:21]} 52. Ke4 {[%clk 0:00:12]}  exd4 {[%clk 0:00:20]} 53. Kxd4 {[%clk 0:00:11]}  Rc4+ {[%clk 0:00:20]} 54. Ke3 {[%clk 0:00:11]}  R8c6 {[%clk 0:00:19]} 55. R7b6 {[%clk 0:00:08]}  Kd5 {[%clk 0:00:15]} 56. Rb7 {[%clk 0:00:06]}  Rc3+ {[%clk 0:00:11]} 57. Rxc3 {[%clk 0:00:05]}  Rxc3+ {[%clk 0:00:12]} 58. Kf4 {[%clk 0:00:05]}  Rc5 {[%clk 0:00:12]} 59. Rb6 {[%clk 0:00:05]}  Rxa5 {[%clk 0:00:12]} 60. Rxf6 {[%clk 0:00:05]}  Ra3 {[%clk 0:00:13]} 61. Kg5 {[%clk 0:00:05]}  a5 {[%clk 0:00:12]} 62. f4 {[%clk 0:00:06]}  Rg3+ {[%clk 0:00:12]} 63. Kf5 {[%clk 0:00:05]}  a4 {[%clk 0:00:12]} 64. Ra6 {[%clk 0:00:06]}  a3 {[%clk 0:00:12]} 65. Kf6 {[%clk 0:00:06]}  Kc4 {[%clk 0:00:11]} 66. f5 {[%clk 0:00:07]}  Kb3 {[%clk 0:00:11]} 67. Kf7 {[%clk 0:00:06]}  a2 {[%clk 0:00:11]} 68. f6 {[%clk 0:00:06]}  Kb2 {[%clk 0:00:12]} 69. Rxa2+ {[%clk 0:00:06]}  Kxa2 {[%clk 0:00:12]} 70. Ke7 {[%clk 0:00:07]}  Re3+ {[%clk 0:00:12]} 71. Kd7 {[%clk 0:00:07]}  Rd3+ {[%clk 0:00:12]} 72. Ke7 {[%clk 0:00:07]}  Kb3 {[%clk 0:00:12]} 73. f7 {[%clk 0:00:07]}  Re3+ {[%clk 0:00:13]} 74. Kd7 {[%clk 0:00:08]}  Rf3 {[%clk 0:00:14]} 75. Ke7 {[%clk 0:00:09]}  Kc4 {[%clk 0:00:14]} 76. f8=Q {[%clk 0:00:08]}  Rxf8 {[%clk 0:00:14]} 77. Kxf8 {[%clk 0:00:09]} 1/2-1/2


[Site "https://www.chess.com"]

[Event "Titled Tuesday Blitz April 05 Late 2022"]
[White "Sanal, Vahap"]
[Black "Mekhitarian, Krikor Sevag"]
[WhiteFideId "6300545"]
[BlackFideId "2107660"]
[WhiteElo "2603"]
[BlackElo "2598"]
[Result "1-0"]
[Round "08"]
[TimeControl "180+1"]
[Date "2022.04.05"]
[WhiteClock "0:00:04"]
[BlackClock "0:00:07"]

1. e4 {[%clk 0:03:00]}  c5 {[%clk 0:02:59]} 2. Nc3 {[%clk 0:02:59]}  e6 {[%clk 0:02:59]} 3. g3 {[%clk 0:02:58]}  d5 {[%clk 0:02:58]} 4. exd5 {[%clk 0:02:58]}  exd5 {[%clk 0:02:59]} 5. d4 {[%clk 0:02:59]}  cxd4 {[%clk 0:02:59]} 6. Qxd4 {[%clk 0:02:59]}  Nf6 {[%clk 0:02:58]} 7. Bg5 {[%clk 0:02:59]}  Be7 {[%clk 0:02:57]} 8. O-O-O {[%clk 0:02:56]}  Nc6 {[%clk 0:02:57]} 9. Qa4 {[%clk 0:02:56]}  Be6 {[%clk 0:02:54]} 10. Bg2 {[%clk 0:02:55]}  O-O {[%clk 0:02:53]} 11. Nge2 {[%clk 0:02:53]}  Qb6 {[%clk 0:02:18]} 12. Be3 {[%clk 0:02:37]}  Bc5 {[%clk 0:02:17]} 13. Bxc5 {[%clk 0:02:34]}  Qxc5 {[%clk 0:02:18]} 14. Nd4 {[%clk 0:02:28]}  Rfe8 {[%clk 0:02:14]} 15. Qb5 {[%clk 0:02:21]}  Qe7 {[%clk 0:02:05]} 16. Rhe1 {[%clk 0:02:14]}  Qd6 {[%clk 0:01:50]} 17. a3 {[%clk 0:01:40]}  a6 {[%clk 0:01:43]} 18. Qb3 {[%clk 0:01:21]}  Rac8 {[%clk 0:01:33]} 19. Nxe6 {[%clk 0:01:14]}  fxe6 {[%clk 0:01:34]} 20. Kb1 {[%clk 0:01:11]}  b5 {[%clk 0:01:31]} 21. f4 {[%clk 0:01:11]}  g6 {[%clk 0:01:21]} 22. Ne2 {[%clk 0:00:54]}  Qc5 {[%clk 0:01:17]} 23. Qc3 {[%clk 0:00:50]}  Qxc3 {[%clk 0:01:10]} 24. Nxc3 {[%clk 0:00:50]}  Kg7 {[%clk 0:01:09]} 25. Bf3 {[%clk 0:00:46]}  Kf7 {[%clk 0:00:45]} 26. Ne2 {[%clk 0:00:46]}  Red8 {[%clk 0:00:34]} 27. c3 {[%clk 0:00:44]}  Rd6 {[%clk 0:00:33]} 28. Nd4 {[%clk 0:00:40]}  Nxd4 {[%clk 0:00:31]} 29. Rxd4 {[%clk 0:00:41]}  Rc4 {[%clk 0:00:31]} 30. Red1 {[%clk 0:00:40]}  Rdc6 {[%clk 0:00:29]} 31. Be2 {[%clk 0:00:38]}  Rxd4 {[%clk 0:00:28]} 32. Rxd4 {[%clk 0:00:39]}  Ne4 {[%clk 0:00:28]} 33. a4 {[%clk 0:00:40]}  Nd6 {[%clk 0:00:27]} 34. axb5 {[%clk 0:00:38]}  axb5 {[%clk 0:00:28]} 35. Rb4 {[%clk 0:00:38]}  Rc5 {[%clk 0:00:28]} 36. Kc2 {[%clk 0:00:38]}  Kf6 {[%clk 0:00:28]} 37. Rb3 {[%clk 0:00:38]}  g5 {[%clk 0:00:25]} 38. Rb4 {[%clk 0:00:33]}  h6 {[%clk 0:00:23]} 39. fxg5+ {[%clk 0:00:31]}  hxg5 {[%clk 0:00:24]} 40. h4 {[%clk 0:00:31]}  gxh4 {[%clk 0:00:25]} 41. gxh4 {[%clk 0:00:31]}  Nc4 {[%clk 0:00:21]} 42. h5 {[%clk 0:00:30]}  Kg5 {[%clk 0:00:21]} 43. b3 {[%clk 0:00:30]}  Nd6 {[%clk 0:00:20]} 44. Rg4+ {[%clk 0:00:29]}  Kf6 {[%clk 0:00:18]} 45. Rg6+ {[%clk 0:00:29]}  Ke5 {[%clk 0:00:18]} 46. b4 {[%clk 0:00:17]}  Rc8 {[%clk 0:00:16]} 47. Rg5+ {[%clk 0:00:11]}  Kf4 {[%clk 0:00:13]} 48. Rg4+ {[%clk 0:00:09]}  Ke3 {[%clk 0:00:14]} 49. Bd3 {[%clk 0:00:08]}  e5 {[%clk 0:00:14]} 50. Rg5 {[%clk 0:00:07]}  Kf4 {[%clk 0:00:13]} 51. Rg6 {[%clk 0:00:06]}  Ne4 {[%clk 0:00:06]} 52. Bxe4 {[%clk 0:00:06]}  Kxe4 {[%clk 0:00:07]} 53. h6 {[%clk 0:00:06]}  Rh8 {[%clk 0:00:07]} 54. Kd2 {[%clk 0:00:06]}  d4 {[%clk 0:00:04]} 55. Rb6 {[%clk 0:00:04]}  dxc3+ {[%clk 0:00:03]} 56. Kxc3 {[%clk 0:00:04]}  Rc8+ {[%clk 0:00:02]} 57. Kd2 {[%clk 0:00:04]}  Rh8 {[%clk 0:00:03]} 58. Rd6 {[%clk 0:00:03]}  Rc8 {[%clk 0:00:03]} 59. Ke2 {[%clk 0:00:02]}  Rh8 {[%clk 0:00:03]} 60. Kf2 {[%clk 0:00:02]}  Kf4 {[%clk 0:00:03]} 61. Ke1 {[%clk 0:00:02]}  Kf5 {[%clk 0:00:03]} 62. Kd2 {[%clk 0:00:02]}  Kg5 {[%clk 0:00:04]} 63. Ke3 {[%clk 0:00:02]}  Rxh6 {[%clk 0:00:04]} 64. Rxh6 {[%clk 0:00:01]}  Kxh6 {[%clk 0:00:05]} 65. Ke4 {[%clk 0:00:02]}  Kg6 {[%clk 0:00:04]} 66. Kxe5 {[%clk 0:00:03]}  Kf7 {[%clk 0:00:05]} 67. Kd6 {[%clk 0:00:04]}  Ke8 {[%clk 0:00:05]} 68. Kc6 {[%clk 0:00:04]}  Kd8 {[%clk 0:00:06]} 69. Kxb5 {[%clk 0:00:05]}  Kc7 {[%clk 0:00:07]} 70. Ka6 {[%clk 0:00:05]}  Kc8 {[%clk 0:00:07]} 71. Ka7 {[%clk 0:00:04]} 1-0


[Site "https://www.chess.com"]